bitfinex/quotes_ETHUSD_20260107
["timestamp","ask_amount","ask_price","bid_price","bid_amount"]
[1767810670583,1.34324016,3164.2,3162.4,0.001]
[1767810670785,1.34324016,3164.0,3162.4,0.001]
[1767810670994,1.34324016,3163.8,3162.4,0.001]
[1767810672084,1.34324016,3163.8,3161.6,6.32691092]
[1767810672085,1.34324016,3163.8,3161.6,0.001]
[1767810672588,1.34324016,3163.6,3161.6,0.001]
[1767810672793,1.34324016,3163.4,3161.6,0.001]
[1767810673089,1.34324016,3163.2,3161.6,0.001]
[1767810673983,1.34324016,3163.2,3160.5,3.164028]
[1767810674407,1.34324016,3163.2,3160.6,3.16394386]
[1767810674621,1.34324016,3163.2,3160.0,9.49366845]
[1767810674622,1.34324016,3162.9,3160.0,9.49366845]
[1767810674805,1.34324016,3162.7,3160.1,2.39752929]
[1767810675009,1.34324016,3162.7,3160.0,6.32911149]
[1767810675186,1.34324016,3162.7,3160.0,3.16455453]
[1767810675786,1.34324016,3162.5,3160.0,3.16455453]
[1767810676204,1.34324016,3162.3,3160.0,6.32911149]
[1767810676412,1.34324016,3162.3,3159.9,3.16462524]
[1767810676612,1.34324016,3162.1,3160.0,0.31646252]
[1767810676815,1.34324016,3161.9,3160.0,0.31646252]
[1767810677011,1.34324016,3161.7,3159.6,0.001]
[1767810677336,1.34324016,3161.7,3159.9,3.16461674]
[1767810677635,1.34324016,3161.7,3159.6,3.16588996]
[1767810677790,1.34324016,3161.5,3159.7,0.63309158]
[1767810677993,1.34324016,3161.5,3159.9,3.16464823]
[1767810678226,1.34324016,3161.5,3159.8,3.16472121]
[1767810678392,1.34324016,3161.5,3159.6,0.001]
[1767810678593,1.34324016,3161.5,3159.9,3.16458243]
[1767810678787,10.83270684,3161.4,3159.6,0.001]
[1767810678994,0.85463951,3161.3,3159.6,0.001]
[1767810679220,0.829,3161.2,3159.6,0.001]
[1767810679528,2.17224016,3161.2,3159.6,0.001]
[1767810679739,1.34324016,3161.1,3159.6,0.001]
[1767810680822,1.34324016,3160.9,3159.6,0.001]
[1767810681029,1.34324016,3160.7,3159.6,0.001]
[1767810681225,1.34324016,3160.5,3159.6,0.001]
[1767810681728,0.829,3160.6,3159.6,0.001]
[1767810682031,7.67035182,3161.0,3159.6,0.001]
[1767810682227,0.829,3160.5,3159.6,0.001]
[1767810683117,6.32831286,3160.4,3159.6,0.001]
[1767810683292,3.16415643,3160.4,3159.6,0.001]
[1767810684541,3.16387504,3160.7,3159.6,0.001]
[1767810684698,0.829,3160.6,3159.6,0.001]
[1767810685111,3.16415643,3160.4,3159.6,0.001]
[1767810685655,6.32831286,3160.4,3159.6,0.001]
[1767810685930,7.1571987,3160.5,3159.6,0.001]
[1767810686346,7.1571987,3160.5,3159.9,0.001]
[1767810686656,0.002,3160.2,3159.9,0.001]
[1767810687605,1.34524016,3160.2,3159.6,0.001]
[1767810687809,1.34524016,3160.2,3159.3,0.001]
[1767810689228,1.34324016,3160.0,3159.3,0.001]
[1767810689434,1.91266106,3159.9,3159.3,0.001]
[1767810689742,1.34324016,3159.8,3157.5,0.91450943]
[1767810689915,0.829,3159.7,3157.9,0.91450943]
[1767810690116,0.829,3159.7,3158.0,0.01076742]
[1767810690330,0.829,3159.7,3158.4,3.16612581]
[1767810690639,0.829,3159.7,3158.5,0.31661258]
[1767810691116,0.829,3159.7,3158.4,0.01076064]
[1767810691440,3.16495758,3159.6,3158.4,6.34299977]
[1767810691645,6.32991516,3159.6,3158.5,0.01076138]
[1767810692238,3.16459064,3160.0,3158.5,0.01076138]
[1767810692239,1.43414619,3160.3,3158.5,0.92315004]
[1767810692441,3.99345682,3160.1,3158.5,0.92315004]
[1767810692617,3.99345682,3160.1,3158.6,1.04215493]
[1767810692824,7.1580032,3160.1,3158.7,0.01075312]
[1767810693413,1.43414619,3160.0,3158.7,3.17658387]
[1767810693615,1.47370315,3160.0,3158.1,0.91669933]
[1767810693815,1.43414619,3159.8,3158.5,3.16599276]
[1767810694029,1.43414619,3159.8,3158.7,3.16584287]
[1767810694514,1.43414619,3159.8,3158.1,0.91669933]
[1767810694830,1.43414619,3159.8,3158.7,3.16585937]
[1767810695238,1.43414619,3159.8,3158.7,6.33171874]
[1767810695442,3.16485742,3159.7,3158.7,3.79903124]
[1767810695750,1.43414619,3159.8,3158.8,0.01075603]
[1767810695921,0.829,3159.6,3158.7,6.96489061]
[1767810696255,0.829,3159.6,3158.7,0.63317187]
[1767810696440,0.829,3159.6,3158.7,3.16583397]
[1767810697019,0.829,3159.6,3158.7,3.16585035]
[1767810697539,1.43414619,3159.4,3158.2,6.33267719]
[1767810697731,1.4321462,3159.4,3158.2,6.33267719]
[1767810697932,1.4321462,3159.4,3158.2,9.49903777]
[1767810698137,1.43414619,3159.4,3158.3,0.96067017]
[1767810699219,1.43414619,3159.4,3159.0,0.001]
[1767810699770,0.829,3159.6,3159.0,0.001]
[1767810699771,1.43414619,3159.2,3159.0,0.001]
[1767810702446,1.43414619,3159.1,3159.0,3.781]
[1767810702846,2.26314619,3159.1,3158.5,3.78]
[1767810703059,1.43414619,3159.0,3158.5,3.78]
[1767810703254,1.43414619,3159.0,3158.6,3.78]
[1767810703572,0.829,3159.1,3158.4,6.33228193]
[1767810703573,0.82800102,3159.1,3158.5,3.79076571]
[1767810703773,0.829,3159.3,3158.7,3.78]
[1767810704154,1.43414619,3160.0,3158.7,3.78]
[1767810704457,0.829,3159.9,3158.8,3.78]
[1767810704670,6.32951452,3159.8,3158.8,3.78]
[1767810705266,3.16475726,3159.8,3158.8,10.11150875]
[1767810705465,7.15835396,3159.9,3158.8,6.94574961]
[1767810705659,7.15835396,3159.9,3158.8,4.57580544]
[1767810705979,7.15835396,3159.9,3158.8,3.78]
[1767810706270,7.15835396,3159.9,3158.8,6.94575316]
[1767810706775,7.15835396,3159.9,3158.9,3.78]
[1767810706976,7.15835396,3159.9,3158.9,6.94564186]
[1767810707276,7.15835396,3159.9,3158.9,3.78]
[1767810707774,1.43414619,3159.8,3158.9,3.78]
[1767810707946,1.43414619,3159.7,3158.5,3.16600536]
[1767810708147,1.43414619,3159.7,3158.1,1.12642657]
[1767810708353,0.62478574,3159.6,3158.1,1.12642657]
[1767810708648,1.43414619,3159.5,3158.4,3.16610795]
[1767810708975,3.16525812,3159.3,3157.9,7.45584347]
[1767810709182,3.99421668,3159.4,3158.0,1.13331293]
[1767810709183,3.99420283,3159.4,3158.0,1.13331293]
[1767810709382,3.99420283,3159.4,3158.1,2.56386884]
[1767810709676,7.15940566,3159.4,3158.2,0.01076782]
[1767810710183,8.59355185,3159.4,3158.1,1.44132766]
[1767810710557,1.47371191,3159.3,3158.1,1.44132766]
[1767810710880,4.5996047,3159.1,3159.0,0.001]
[1767810711065,1.43414619,3159.0,3158.2,3.16636058]
[1767810711251,0.829,3158.9,3158.2,3.16636058]
[1767810711453,1.43414619,3158.8,3157.9,3.16659607]
[1767810711647,1.66046081,3158.8,3157.5,3.1670587]
[1767810711851,1.66046081,3158.8,3157.1,6.94738638]
[1767810712066,1.66046081,3158.8,3157.3,3.16723731]
[1767810712356,1.66046081,3158.8,3157.7,3.16681772]
[1767810712777,1.66046081,3158.8,3157.5,3.16702633]
[1767810712977,1.66046081,3158.8,3157.6,10.27]
[1767810713171,1.43414619,3158.6,3157.6,10.27]
[1767810713373,3.39207376,3158.8,3157.7,3.78]
[1767810713586,6.33152812,3158.8,3157.7,5.44039118]
[1767810714588,3.16575914,3158.8,3157.8,3.78]
[1767810715077,6.33152812,3158.8,3157.8,3.78]
[1767810715863,7.76567431,3158.8,3157.8,6.94675974]
[1767810716489,1.43414619,3158.7,3157.8,6.94675974]
[1767810717862,3.1659596,3158.6,3157.9,3.78]
[1767810718288,1.43414619,3158.7,3157.9,3.78]
[1767810718593,1.43414619,3158.7,3158.0,3.16656111]
[1767810718942,4.6000072,3158.7,3158.0,3.16656111]
[1767810719693,1.43414619,3158.7,3158.0,3.16656111]
[1767810720688,0.829,3158.9,3158.1,0.01077682]
[1767810720888,1.43414619,3159.5,3158.9,0.01955858]
[1767810721089,0.002,3160.2,3158.0,10.51100477]
[1767810721090,1.43414619,3159.3,3158.0,10.51100477]
[1767810721289,0.83,3159.8,3158.1,2.90284643]
[1767810721490,3.16487135,3159.7,3158.2,1.45208458]
[1767810721659,3.99479608,3159.8,3158.3,1.46284881]
[1767810721861,0.83,3159.8,3158.5,1.46393205]
[1767810722197,0.83,3159.8,3158.6,6.3319192]
[1767810722494,1e-08,3160.5,3158.8,1.46393205]
[1767810722685,7.15831286,3160.4,3158.8,2.29393205]
[1767810722992,0.02882483,3160.3,3158.8,2.29393205]
[1767810724188,6.32871336,3160.2,3159.0,3.16555872]
[1767810724390,0.02882483,3160.1,3159.1,0.77951422]
[1767810724987,6.32854434,3160.3,3159.2,1.46393205]
[1767810725287,1e-08,3160.5,3159.4,1.46393205]
[1767810725690,3.16410257,3160.5,3159.4,1.46393205]
[1767810725897,1e-08,3160.5,3159.4,1.46393205]
[1767810726099,1e-08,3160.5,3159.6,1.46393205]
[1767810726398,1e-08,3160.5,3159.7,7.79364689]
[1767810726626,1e-08,3160.5,3159.8,0.83]
[1767810727302,1e-08,3160.5,3159.8,2.29393205]
[1767810727694,1e-08,3160.5,3159.9,1.46393205]
[1767810727893,1e-08,3160.5,3160.0,1.46393205]
[1767810728135,0.832,3161.2,3160.0,1.46393205]
[1767810728136,0.002,3161.2,3160.0,1.46393205]
[1767810728304,0.002,3161.2,3159.9,0.86236469]
[1767810728305,0.002,3161.2,3160.2,1.46393205]
[1767810728501,0.002,3161.2,3160.1,6.32891364]
[1767810728502,0.002,3161.2,3160.4,1.46393205]
[1767810728835,0.002,3161.2,3160.5,0.829]
[1767810729140,0.002,3161.2,3160.5,2.29293205]
[1767810730333,0.002,3161.2,3160.6,1.46393205]
[1767810730531,0.002,3161.2,3160.5,0.829]
[1767810730706,0.002,3161.2,3160.5,3.99299795]
[1767810731426,0.002,3161.2,3160.5,0.829]
[1767810732415,0.002,3161.2,3160.2,4.62822844]
[1767810732742,0.002,3161.2,3160.4,0.829]
[1767810733307,0.002,3161.2,3160.4,3.99315103]
[1767810733812,0.002,3161.2,3160.4,0.829]
[1767810734814,0.002,3161.2,3160.2,5.40751885]
[1767810735015,0.002,3161.2,3160.3,3.99321459]
[1767810735318,0.002,3161.2,3160.4,3.1641473]
[1767810735508,0.002,3161.2,3160.4,4.62807935]
[1767810735711,0.002,3160.9,3160.4,4.62807935]
[1767810736139,0.002,3160.9,3160.5,3.78]
[1767810737130,0.002,3160.9,3160.5,6.94402279]
[1767810737648,0.002,3160.9,3160.5,3.78]
[1767810738937,0.002,3160.9,3160.5,8.42429384]
[1767810739110,0.002,3160.9,3160.5,9.88822589]
[1767810739312,0.002,3160.9,3160.6,3.78]
[1767810740318,0.002,3160.9,3160.6,3.65570306]
[1767810740534,0.002,3160.9,3160.4,0.829]
[1767810740535,0.002,3160.9,3160.4,4.62802986]
[1767810740841,0.002,3160.9,3159.7,7.95393205]
[1767810741141,0.002,3160.9,3160.1,0.83]
[1767810741320,1.45246585,3160.7,3160.1,0.001]
[1767810743756,6.32791242,3160.6,3160.1,0.001]
[1767810743953,1.45246585,3160.5,3159.7,7.319]
[1767810744255,6.32791242,3160.6,3159.8,3.78]
[1767810744552,3.16395621,3160.6,3159.8,6.94474521]
[1767810744741,3.16395621,3160.6,3159.8,3.78]
[1767810744930,6.32791242,3160.6,3159.8,3.78]
[1767810745663,6.3277122,3160.7,3159.8,3.78]
[1767810746760,6.3277122,3160.7,3159.8,3.16471834]
[1767810746761,3.1638561,3160.7,3159.8,3.16471834]
[1767810746980,3.16379467,3160.8,3159.8,6.3294756]
[1767810747135,0.002,3160.9,3159.9,1.46393205]
[1767810747334,0.002,3161.2,3160.5,1.46393205]
[1767810747739,0.002,3161.2,3160.6,7.79184447]
[1767810747941,0.002,3161.2,3160.6,1.46393205]
[1767810748149,0.002,3161.2,3160.6,2.29293205]
[1767810749047,0.002,3161.2,3160.7,1.46393205]
[1767810750162,0.002,3161.2,3160.7,4.62777073]
[1767810750861,0.002,3161.2,3160.7,1.46393205]
[1767810751854,0.002,3161.2,3160.6,1.37469884]
[1767810752165,0.002,3161.2,3160.6,0.54569884]
[1767810752378,0.002,3161.2,3160.7,0.829]
[1767810752738,1.49041127,3161.2,3160.1,0.001]
[1767810752937,1.5172361,3161.1,3160.1,0.001]
[1767810753184,1.48841127,3160.9,3160.1,0.001]
[1767810753483,1.74897723,3160.8,3158.8,1.41724904]
[1767810754074,1.74897723,3160.8,3158.7,0.829]
[1767810754075,7.1567122,3160.7,3159.2,4.58256079]
[1767810754374,0.02882483,3160.6,3159.2,4.58256079]
[1767810754578,0.02882483,3160.6,3159.2,1.41724904]
[1767810754943,0.02882483,3160.6,3159.3,1.41724904]
[1767810755145,0.02882483,3160.6,3159.2,6.33071662]
[1767810755146,0.85782483,3160.6,3159.4,2.19204561]
[1767810756171,6.32811264,3160.5,3159.4,2.19204561]
[1767810756504,0.02882483,3160.4,3159.4,2.19204561]
[1767810756695,3.16405632,3160.5,3159.4,2.19204561]
[1767810756999,3.1638561,3160.7,3159.5,1.41724904]
[1767810757141,3.16379662,3160.8,3159.5,1.41724904]
[1767810757672,2.31941127,3161.2,3159.5,1.41724904]
[1767810757673,3.16345575,3161.1,3159.5,1.41724904]
[1767810757869,6.32693244,3161.1,3159.5,1.41724904]
[1767810758174,6.32693244,3161.1,3159.7,1.41724904]
[1767810758376,6.32871136,3161.2,3160.0,1.41724904]
[1767810758978,1.5172361,3161.1,3159.6,10.27]
[1767810759349,1.5172361,3161.1,3159.7,0.001]
[1767810759568,0.002,3160.1,3159.7,0.001]
[1767810762585,0.002,3160.1,3159.2,4.58253759]
[1767810762586,0.002,3160.1,3159.2,1.41724904]
[1767810762871,0.002,3160.1,3158.9,3.99463226]
[1767810762872,0.002,3160.1,3158.9,1.41724904]
[1767810763664,0.831,3160.1,3159.0,3.16548515]
[1767810763851,0.831,3160.1,3158.9,4.58288307]
[1767810764461,0.85982483,3160.1,3158.9,4.58288307]
[1767810764663,6.32911392,3160.0,3158.9,4.58288307]
[1767810766778,6.32911392,3160.0,3158.9,1.41724904]
[1767810767072,7.51040782,3160.0,3158.9,4.58286633]
[1767810767277,0.02882483,3159.9,3158.9,4.58286633]
[1767810767882,0.02882483,3159.9,3158.9,1.41724904]
[1767810768183,1.5172361,3159.9,3158.6,3.16590478]
[1767810768390,1.5172361,3159.9,3158.5,2.24624904]
[1767810768558,0.61919476,3159.8,3158.6,3.16593961]
[1767810768760,0.02882483,3159.7,3158.6,3.16593961]
[1767810768975,6.32991516,3159.6,3158.6,3.16593961]
[1767810769457,7.81832643,3159.6,3158.5,1.41724904]
[1767810769657,9.80756702,3159.6,3158.4,3.16611182]
[1767810769873,7.49015575,3159.6,3158.2,1.41724904]
[1767810770073,3.16495758,3159.6,3158.6,1.41724904]
[1767810770988,6.32991516,3159.6,3158.6,1.41724904]
[1767810771285,6.32991516,3159.6,3158.6,4.58318118]
[1767810771879,3.16495758,3159.6,3158.6,7.74914078]
[1767810772067,3.16495758,3159.6,3158.6,8.52405486]
[1767810772388,3.16495758,3159.6,3158.6,5.35809526]
[1767810772590,6.32991516,3159.6,3158.9,0.001]
[1767810774997,1.48841127,3159.8,3158.9,0.001]
[1767810775159,0.002,3160.1,3158.9,1.41824904]
[1767810775160,3.16649814,3160.1,3158.9,1.41824904]
[1767810775361,0.002,3160.1,3159.1,1.41724904]
[1767810775688,0.002,3160.1,3159.3,1.41724904]
[1767810776288,3.16648685,3160.1,3159.3,1.41724904]
[1767810776781,0.002,3160.1,3159.3,4.58243362]
[1767810777195,3.16388693,3160.7,3159.3,4.58243362]
[1767810777196,9.49036725,3161.1,3159.4,1.41724904]
[1767810777491,0.81071578,3160.9,3159.4,1.41724904]
[1767810777694,1.00605068,3160.8,3159.5,1.41724904]
[1767810777861,1.00605068,3160.8,3158.9,1.41824904]
[1767810777862,0.83919662,3160.8,3158.9,1.41824904]
[1767810778063,0.81037179,3160.7,3158.9,0.001]
[1767810778294,0.81037179,3160.5,3158.9,0.001]
[1767810778494,0.81037179,3160.3,3158.9,0.001]
[1767810778867,0.83570728,3160.1,3158.9,0.001]
[1767810779782,0.83518775,3159.9,3158.5,0.829]
[1767810780087,0.83418775,3159.7,3158.6,6.33190367]
[1767810780286,0.83418775,3159.7,3158.6,7.04799404]
[1767810780495,0.83363302,3160.0,3158.7,1.41724904]
[1767810781195,6.3293142,3159.9,3158.8,3.16575914]
[1767810781581,3.1646571,3159.9,3158.9,1.57562789]
[1767810781890,0.83678696,3159.8,3158.5,1.59215259]
[1767810782091,0.86561179,3159.7,3158.2,1.59215259]
[1767810782289,0.83678696,3159.5,3157.3,1.59215259]
[1767810782492,0.83678696,3159.3,3157.4,0.829]
[1767810782691,0.84010964,3159.1,3158.0,3.16655719]
[1767810782891,0.829,3159.1,3157.6,1.59215259]
[1767810783086,0.829,3159.1,3158.0,3.16649085]
[1767810783285,0.829,3159.1,3158.0,3.95902416]
[1767810783479,0.829,3159.1,3158.0,0.79253331]
[1767810783683,0.829,3159.1,3157.9,4.75880232]
[1767810784288,0.829,3159.1,3157.9,4.75980232]
[1767810785303,6.33111744,3159.0,3157.9,4.75980232]
[1767810785687,6.33111744,3159.0,3158.0,1.59215259]
[1767810786301,0.02882483,3158.9,3158.0,1.59215259]
[1767810786550,6.33111744,3159.0,3158.0,1.59215259]
[1767810787074,0.02882483,3158.9,3157.9,0.001]
[1767810787274,9.49727742,3158.8,3157.9,0.001]
[1767810788312,3.16575914,3158.8,3157.9,0.001]
[1767810788614,6.33151828,3158.8,3157.9,0.001]
[1767810789116,0.02882483,3158.7,3157.9,0.001]
[1767810789286,3.16605983,3158.5,3157.9,0.001]
[1767810789478,0.829,3159.1,3157.9,0.001]
[1767810789679,0.829,3159.1,3157.9,1.59315259]
[1767810789980,9.49667616,3159.0,3157.9,1.59315259]
[1767810790393,7.16111744,3159.0,3157.9,1.59315259]
[1767810790604,0.71611174,3158.9,3157.9,1.59315259]
[1767810791527,6.36034311,3158.8,3157.9,0.001]
[1767810791708,6.33151828,3158.8,3157.9,0.001]
[1767810791907,0.02882483,3158.7,3157.9,0.001]
[1767810792108,0.71383604,3158.7,3157.9,0.001]
[1767810792510,0.68501121,3158.7,3157.9,1.59315259]
[1767810792819,6.33151828,3158.8,3157.9,1.59315259]
[1767810793149,0.02882483,3158.7,3157.6,0.83]
[1767810793300,9.4978788,3158.6,3157.6,0.83]
[1767810793496,0.02882483,3158.5,3157.4,2.42215259]
[1767810793691,0.02882483,3158.5,3157.5,0.83]
[1767810793891,2.59554388,3158.5,3157.3,0.83]
[1767810794314,2.59554388,3158.5,3157.3,2.42215259]
[1767810794622,2.59554388,3158.5,3157.4,0.83]
[1767810794802,2.59354388,3158.5,3157.4,0.83]
[1767810795392,6.33232016,3158.4,3157.4,2.42215259]
[1767810795917,6.33232016,3158.4,3157.6,0.001]
[1767810796928,6.33213508,3158.5,3157.6,1.83546785]
[1767810797108,3.16604153,3158.6,3157.6,1.83546785]
[1767810797429,0.002,3158.7,3157.7,1.59215259]
[1767810799629,0.002,3158.7,3157.8,1.59215259]
[1767810799826,0.002,3158.7,3158.0,1.59215259]
[1767810801403,0.002,3158.7,3158.1,6.33292168]
[1767810801605,0.002,3158.7,3158.2,1.59215259]
[1767810802411,0.002,3159.0,3158.2,1.59215259]
[1767810803831,6.32991516,3159.6,3158.3,1.59215259]
[1767810804126,6.32991516,3159.6,3158.5,1.59215259]
[1767810805103,0.02682483,3159.5,3158.5,1.59215259]
[1767810805932,6.33031588,3159.4,3158.5,1.59215259]
[1767810806136,1.6408802,3159.3,3158.5,0.83]
[1767810806322,2.7545156,3159.3,3158.5,0.83]
[1767810806937,2.7545156,3159.3,3158.1,1.59215259]
[1767810807114,2.7545156,3159.3,3158.2,0.83]
[1767810807646,2.7545156,3159.3,3158.1,1.59215259]
[1767810807800,9.49607493,3159.2,3158.1,1.59215259]
[1767810808116,0.71367809,3159.1,3158.2,0.83]
[1767810808636,1.61405537,3159.0,3157.8,2.42215259]
[1767810808821,0.02682483,3158.9,3158.5,0.001]
[1767810809022,0.68685326,3159.1,3158.1,1.59215259]
[1767810809228,3.16735831,3159.2,3158.2,1.75136785]
[1767810809702,6.33271662,3159.2,3158.2,1.75136785]
[1767810809904,0.002,3159.2,3158.2,1.75136785]
[1767810812508,0.002,3159.2,3158.3,1.52873053]
[1767810812708,1.11317788,3159.2,3158.3,1.52873053]
[1767810814137,3.16705918,3159.5,3158.8,1.52873053]
[1767810814721,6.33211836,3159.5,3158.8,1.52873053]
[1767810814923,1.68402253,3159.4,3158.2,0.15921526]
[1767810815124,1.6571977,3159.4,3158.3,3.16625152]
[1767810815334,1.6571977,3159.4,3158.4,0.48541973]
[1767810815734,1.68402253,3159.4,3158.4,0.48541973]
[1767810816042,1.68402253,3159.4,3158.2,1.68794579]
[1767810816613,6.33051624,3159.3,3158.3,3.16625618]
[1767810816814,0.02682483,3159.2,3158.3,3.16625618]
[1767810817020,6.33051624,3159.3,3158.3,3.16625618]
[1767810817944,3.16525812,3159.3,3158.3,7.86124703]
[1767810818143,3.16525812,3159.3,3158.3,8.66329326]
[1767810818614,0.002,3159.5,3158.5,1.52873053]
[1767810820515,0.002,3159.5,3158.7,1.52873053]
[1767810820819,0.002,3159.5,3158.9,1.52873053]
[1767810821049,6.33067496,3160.3,3159.1,1.52873053]
[1767810821737,6.17283667,3160.3,3159.1,1.52873053]
[1767810823445,0.02682483,3160.2,3159.2,1.52873053]
[1767810823834,1.6571977,3160.1,3159.0,3.40138443]
[1767810824038,1.6571977,3160.1,3159.1,0.83]
[1767810824240,2.75663385,3160.1,3159.1,0.83]
[1767810824650,2.75663385,3160.1,3159.1,3.99545196]
[1767810824951,1.6571977,3160.1,3159.1,5.52418249]
[1767810825750,3.16455696,3160.0,3159.1,5.52418249]
[1767810827245,3.16455696,3160.0,3159.1,8.689641]
[1767810827546,3.16425655,3160.3,3159.2,1.52873053]
[1767810827763,6.3285131,3160.3,3159.3,2.39769463]
[1767810827930,6.3285131,3160.3,3159.3,5.56286482]
[1767810828267,3.16425655,3160.3,3159.3,5.56286482]
[1767810828559,3.16599949,3160.6,3159.4,1.52873053]
[1767810829060,6.32999898,3160.6,3159.4,1.52873053]
[1767810829226,3.16599949,3160.6,3159.6,1.52873053]
[1767810829422,3.16599949,3160.6,3159.7,2.35873053]
[1767810829646,6.32999898,3160.6,3159.7,2.35873053]
[1767810829951,0.002,3160.6,3159.7,1.52873053]
[1767810830158,0.002,3160.6,3159.7,2.35873053]
[1767810830321,0.002,3160.6,3159.7,2.9983749]
[1767810831557,0.002,3160.6,3159.7,2.9973749]
[1767810831726,1.6571977,3160.5,3159.7,1.46864437]
[1767810831923,1.6571977,3160.3,3159.7,0.63964437]
[1767810832133,1.6571977,3160.3,3159.7,0.829]
[1767810832870,1.6571977,3160.4,3159.7,0.829]
[1767810834564,4.82144071,3160.4,3159.4,1.52873053]
[1767810835066,0.002,3160.3,3159.5,0.829]
[1767810838768,4.82165452,3160.1,3159.3,0.829]
[1767810838943,7.98611134,3160.1,3159.3,0.829]
[1767810839348,4.82165452,3160.1,3159.3,0.829]
[1767810841971,0.80075159,3160.3,3159.4,1.60504597]
[1767810842179,3.166293,3160.3,3159.4,1.84845057]
[1767810842778,0.002,3160.3,3159.4,5.01358923]
[1767810842987,0.002,3160.3,3159.5,1.60504597]
[1767810844979,0.002,3160.3,3159.6,1.60504597]
[1767810845279,0.002,3160.3,3159.7,0.829]
[1767810846376,0.002,3160.3,3159.0,1.60504597]
[1767810846377,1.64892675,3160.2,3159.0,1.60504597]
[1767810846610,1.64892675,3160.0,3159.1,0.829]
[1767810846785,1.64892675,3160.0,3159.0,1.60504597]
[1767810846786,2.34656667,3160.0,3159.0,1.60504597]
[1767810846949,6.3293142,3159.9,3159.1,0.829]
[1767810847147,3.1646571,3159.9,3159.1,0.829]
[1767810847672,3.16436135,3160.2,3159.2,1.60504597]
[1767810847872,8.61249859,3160.3,3159.3,1.60504597]
[1767810848179,1.64892675,3160.2,3159.3,0.829]
[1767810848355,1.64892675,3160.0,3159.4,0.001]
[1767810849051,3.1646571,3159.9,3159.4,0.001]
[1767810850148,7.97824095,3159.9,3159.4,0.001]
[1767810850349,8.77606505,3159.9,3159.4,0.001]
[1767810852248,1.67575158,3159.8,3159.4,0.001]
[1767810852453,1.67575158,3159.8,3159.0,0.829]
[1767810852655,1.64892675,3159.8,3159.0,0.829]
[1767810853461,4.81373504,3159.8,3158.8,4.7707797]
[1767810853666,4.81373504,3159.8,3158.9,0.829]
[1767810854060,4.81373504,3159.8,3158.9,2.43404597]
[1767810854256,0.7978241,3159.9,3159.0,1.60504597]
[1767810854465,3.16462886,3160.0,3159.0,1.60504597]
[1767810854691,3.16462886,3160.0,3159.0,1.96562794]
[1767810855597,6.32925772,3160.0,3159.0,1.96562794]
[1767810856985,3.16462886,3160.0,3159.0,1.96562794]
[1767810857464,6.32925772,3160.0,3159.0,1.96562794]
[1767810859487,1.67575158,3159.9,3159.0,1.60504597]
[1767810859696,7.97844127,3159.8,3159.0,1.60504597]
[1767810859993,1.67575158,3159.7,3159.1,0.829]
[1767810860196,1.64892675,3159.7,3159.1,0.829]
[1767810860503,1.64892675,3159.7,3159.3,0.001]
[1767810861497,6.32934757,3159.9,3159.3,0.001]
[1767810861498,7.97827432,3159.9,3159.3,0.001]
[1767810861669,1.64892675,3159.6,3159.3,0.001]
[1767810862802,1.67575158,3159.5,3159.3,0.001]
[1767810863801,4.81402823,3159.5,3159.3,0.001]
[1767810864300,1.64892675,3159.4,3159.3,0.001]
[1767810864500,1.64892675,3159.4,3158.6,1.60604597]
[1767810864873,1.64892675,3159.4,3158.6,0.83]
[1767810865212,1.64892675,3159.3,3158.6,0.83]
[1767810865380,1.64892675,3159.3,3158.6,0.001]
[1767810865576,1.64892675,3159.3,3158.6,0.83]
[1767810865781,4.81428506,3159.2,3158.6,0.83]
[1767810866984,1.64892675,3159.1,3158.6,0.001]
[1767810867304,2.13035526,3159.1,3158.6,0.001]
[1767810868007,1.64892675,3159.1,3158.6,0.001]
[1767810868201,4.81439972,3159.1,3158.6,0.001]
[1767810870389,1.64892675,3159.1,3158.6,0.001]
[1767810870708,3.16540477,3159.2,3158.6,0.001]
[1767810871098,6.33085786,3159.2,3158.6,0.001]
[1767810871510,7.97978461,3159.2,3158.6,0.001]
[1767810871708,4.81433152,3159.2,3158.6,0.001]
[1767810871903,4.81433152,3159.2,3158.9,0.001]
[1767810872109,5.6122935,3159.2,3158.9,0.001]
[1767810872798,8.77774659,3159.2,3158.9,0.001]
[1767810873477,5.61228681,3159.2,3158.9,0.001]
[1767810873677,8.77768489,3159.2,3158.6,0.001]
[1767810873884,1.62931191,3159.1,3158.6,0.001]
[1767810874099,1.62931191,3159.0,3158.6,0.001]
[1767810874295,3.16565893,3158.9,3158.6,0.001]
[1767810874580,4.79491179,3159.0,3158.6,0.001]
[1767810876194,1.62931191,3159.0,3158.6,0.001]
[1767810876490,4.04129471,3159.1,3158.6,0.001]
[1767810878215,5.67060662,3159.1,3158.6,0.001]
[1767810879216,8.83609432,3159.1,3158.6,0.001]
[1767810879598,5.67060662,3159.1,3158.6,0.001]
[1767810880297,8.83609432,3159.1,3158.6,0.001]
[1767810881011,5.67060662,3159.1,3158.6,0.001]
[1767810881216,4.79479961,3159.1,3158.6,0.001]
[1767810883529,7.96028731,3159.1,3158.6,0.001]
[1767810883722,4.79479961,3159.1,3158.6,0.001]
[1767810884723,1.63131191,3159.5,3158.7,1.53893125]
[1767810884924,0.002,3159.5,3158.9,1.53893125]
[1767810885115,0.002,3159.5,3159.1,1.53893125]
[1767810886026,0.002,3159.5,3158.8,0.83]
[1767810886027,1.62931191,3159.3,3157.6,1.53993125]
[1767810886196,1.62931191,3159.3,3157.8,1.12600208]
[1767810886197,0.87946516,3159.1,3157.8,1.12600208]
[1767810886395,0.87946516,3159.1,3158.2,1.12600208]
[1767810886396,3.16545851,3159.1,3158.2,1.12600208]
[1767810886597,3.16539918,3159.2,3158.3,1.13013229]
[1767810886811,1.62931191,3159.4,3158.5,1.13013229]
[1767810887137,4.79449817,3159.4,3158.5,1.13013229]
[1767810887301,0.002,3159.5,3158.5,1.13013229]
[1767810888331,0.002,3159.8,3159.1,1.14343408]
[1767810888502,0.002,3160.3,3159.6,1.14343408]
[1767810888696,0.002,3160.3,3159.7,0.83]
[1767810889232,1.63131191,3160.6,3159.8,1.14347599]
[1767810889233,0.002,3160.6,3159.8,1.14347599]